bitfinex/quotes_BTCUSD_20250713
["timestamp","ask_amount","ask_price","bid_price","bid_amount"]
[1752371246713,0.05652,117410.0,117390.0,0.91999945]
[1752371246920,0.05652,117410.0,117400.0,0.41154945]
[1752371247126,0.05652,117410.0,117400.0,0.41359945]
[1752371247300,0.05858,117410.0,117400.0,0.41359945]
[1752371247784,0.05858,117410.0,117400.0,0.41154945]
[1752371247991,0.05858,117410.0,117400.0,0.22897078]
[1752371248132,0.05858,117410.0,117400.0,0.41154945]
[1752371248624,0.06058,117410.0,117400.0,0.41154945]
[1752371252075,0.06058,117410.0,117400.0,0.22897078]
[1752371252311,0.06058,117410.0,117400.0,0.41154945]
[1752371253016,0.06058,117410.0,117400.0,0.22897078]
[1752371253284,0.06058,117410.0,117400.0,0.41154945]
[1752371254313,0.06058,117410.0,117400.0,0.22897078]
[1752371254570,0.06058,117410.0,117400.0,0.41154945]
[1752371261121,0.06058,117410.0,117400.0,0.22897078]
[1752371261355,0.06058,117410.0,117400.0,0.41154945]
[1752371263275,0.06058,117410.0,117400.0,0.22897078]
[1752371263540,0.06058,117410.0,117400.0,0.41154945]
[1752371264618,0.0554,117410.0,117400.0,0.41350945]
[1752371264823,0.0391,117410.0,117400.0,0.41350945]
[1752371265241,0.0534,117410.0,117400.0,0.41350945]
[1752371266434,0.0534,117410.0,117400.0,0.51550945]
[1752371270129,0.05663,117410.0,117400.0,0.33293078]
[1752371270291,0.05663,117410.0,117400.0,0.51550945]
[1752371272087,0.0534,117410.0,117400.0,0.51550945]
[1752371272286,0.022,117410.0,117400.0,0.51550945]
[1752371272505,0.0024,117430.0,117400.0,0.51550945]
[1752371272506,0.0024,117430.0,117410.0,0.04624085]
[1752371272729,0.0025271,117430.0,117420.0,0.15186993]
[1752371272945,0.0025271,117430.0,117420.0,0.3344486]
[1752371273169,0.05483,117440.0,117430.0,0.01454085]
[1752371273407,0.05483,117440.0,117430.0,0.09997078]
[1752371273408,0.05685,117440.0,117430.0,0.09997078]
[1752371273631,0.23942867,117440.0,117430.0,0.09997078]
[1752371275059,0.05685,117440.0,117430.0,0.09997078]
[1752371276731,0.05685,117440.0,117430.0,0.28450945]
[1752371277183,0.05685,117440.0,117430.0,0.10193078]
[1752371277625,0.05685,117440.0,117430.0,0.28450945]
[1752371277838,0.05685,117440.0,117430.0,0.10193078]
[1752371278072,0.05685,117440.0,117430.0,0.12495329]
[1752371278437,0.05685,117440.0,117430.0,0.22695329]
[1752371281177,0.05685,117440.0,117430.0,0.41149196]
[1752371281400,0.05483,117440.0,117430.0,0.41149196]
[1752371281610,0.0516,117440.0,117430.0,0.41149196]
[1752371282251,0.05483,117440.0,117430.0,0.41149196]
[1752371283453,0.05483,117440.0,117430.0,0.41249196]
[1752371283821,0.05685,117440.0,117430.0,0.41249196]
[1752371284030,0.05685,117440.0,117430.0,0.22991329]
[1752371284438,0.05685,117440.0,117430.0,0.23091329]
[1752371284873,0.05685,117440.0,117430.0,0.41349196]
[1752371285075,0.05685,117440.0,117430.0,0.42213747]
[1752371285489,0.05483,117440.0,117430.0,0.42213747]
[1752371286486,0.05684,117440.0,117430.0,0.2395588]
[1752371289268,0.05483,117440.0,117430.0,0.42213747]
[1752371289482,0.0202,117440.0,117430.0,0.42213747]
[1752371290533,0.0362,117440.0,117430.0,0.42213747]
[1752371290964,0.0362,117440.0,117430.0,0.2395588]
[1752371291370,0.0362,117440.0,117430.0,0.42213747]
[1752371291961,0.0202,117440.0,117430.0,0.43938747]
[1752371292960,0.01170018,117440.0,117430.0,0.42408747]
[1752371294478,0.01170018,117440.0,117430.0,0.43988747]
[1752371294666,0.01170018,117440.0,117430.0,0.45598747]
[1752371295359,0.00320036,117440.0,117430.0,0.79598747]
[1752371295569,0.00320036,117440.0,117430.0,0.5973088]
[1752371295788,0.018,117450.0,117430.0,0.77988747]
[1752371296020,0.018,117450.0,117440.0,0.34698945]
[1752371296238,0.018,117450.0,117440.0,0.34906945]
[1752371296445,0.029,117450.0,117440.0,0.34906945]
[1752371297716,0.024,117450.0,117440.0,0.34906945]
[1752371298774,0.019682,117460.0,117440.0,0.34906945]
[1752371298998,0.20226067,117460.0,117440.0,0.34906945]
[1752371299331,0.0161,117450.0,117440.0,0.34906945]
[1752371299550,0.20226067,117460.0,117440.0,0.34906945]
[1752371300187,0.000542,117460.0,117450.0,0.28254945]
[1752371300441,0.000542,117460.0,117450.0,0.28462945]
[1752371300908,0.033142,117460.0,117450.0,0.28462945]
[1752371301105,0.033142,117460.0,117450.0,0.10205078]
[1752371301323,0.035142,117460.0,117450.0,0.28462945]
[1752371302208,0.035142,117460.0,117450.0,0.10205078]
[1752371302435,0.038182,117460.0,117450.0,0.28462945]
[1752371306342,0.002,117460.0,117450.0,0.10400078]
[1752371306555,0.0224,117470.0,117460.0,0.0315]
[1752371306757,0.0143986,117470.0,117460.0,0.48046819]
[1752371307169,0.0143986,117470.0,117460.0,0.18856506]
[1752371307398,0.00590019,117470.0,117460.0,0.18856506]
[1752371307602,0.00690159,117480.0,117470.0,0.0155]
[1752371307811,0.00705063,117480.0,117470.0,0.08750993]
[1752371308041,0.20118089,117480.0,117470.0,0.15286993]
[1752371308253,0.20118089,117480.0,117470.0,0.15082993]
[1752371308512,0.38375956,117480.0,117470.0,0.09997078]
[1752371308751,0.38375956,117480.0,117470.0,0.15086993]
[1752371308961,0.26172647,117480.0,117470.0,0.15186993]
[1752371309393,0.26172647,117480.0,117470.0,0.15094993]
[1752371309394,0.52035072,117480.0,117470.0,0.15094993]
[1752371309626,0.27722647,117480.0,117470.0,0.15094993]
[1752371310753,0.27722647,117480.0,117470.0,0.15194993]
[1752371311470,0.52035072,117480.0,117470.0,0.15194993]
[1752371311920,0.27722647,117480.0,117470.0,0.15194993]
[1752371312598,0.27722647,117480.0,117470.0,0.15094993]
[1752371313057,0.27822647,117480.0,117470.0,0.15094993]
[1752371313744,0.03510222,117480.0,117470.0,0.15094993]
[1752371313949,0.28088649,117480.0,117470.0,0.15094993]
[1752371314170,0.27822647,117480.0,117470.0,0.15094993]
[1752371315541,0.0317,117470.0,117440.0,0.6374]
[1752371315775,0.03436048,117460.0,117450.0,0.15102993]
[1752371316010,0.28071473,117460.0,117450.0,0.15102993]
[1752371316257,0.28017425,117460.0,117450.0,0.15102993]
[1752371316932,0.28017425,117460.0,117450.0,0.15302993]
[1752371317807,0.031,117460.0,117450.0,0.15302993]
[1752371318016,0.00323,117460.0,117450.0,0.15517993]
[1752371318239,0.0157,117470.0,117450.0,0.15617993]
[1752371318449,0.00535,117460.0,117450.0,0.17072078]
[1752371318681,0.27947425,117460.0,117450.0,0.15410993]
[1752371318887,0.27947425,117460.0,117450.0,0.15110993]
[1752371319114,0.27947425,117460.0,117450.0,0.08542993]
[1752371319327,0.27947425,117460.0,117450.0,0.15114993]
[1752371319548,0.27947425,117460.0,117450.0,0.08542993]
[1752371319747,0.27947425,117460.0,117450.0,0.15114993]
[1752371322101,0.03635,117460.0,117450.0,0.15114993]
[1752371322317,0.27947425,117460.0,117450.0,0.15114993]
[1752371323451,0.03635,117460.0,117450.0,0.15114993]
[1752371324322,0.03493,117470.0,117450.0,0.16784078]
[1752371325781,0.03493,117470.0,117450.0,0.16984078]
[1752371326038,0.27805425,117470.0,117450.0,0.17084078]
[1752371326739,0.27805425,117470.0,117460.0,0.10196]
[1752371326980,0.28017425,117470.0,117460.0,0.18738993]
[1752371327504,0.03705,117470.0,117460.0,0.18738993]
[1752371327729,0.28017425,117470.0,117460.0,0.18738993]
[1752371328163,0.03705,117470.0,117460.0,0.18738993]
[1752371328408,0.28017425,117470.0,117460.0,0.18738993]
[1752371328621,0.03705,117470.0,117460.0,0.18738993]
[1752371328825,0.26477425,117470.0,117460.0,0.18738993]
[1752371329447,0.02165,117470.0,117460.0,0.18738993]
[1752371330289,0.03705,117470.0,117460.0,0.18738993]
[1752371334611,0.03705,117470.0,117460.0,0.18953993]
[1752371334957,0.26275425,117480.0,117460.0,0.18953993]
[1752371335241,0.27785425,117480.0,117470.0,0.15106993]
[1752371335410,0.27997425,117480.0,117470.0,0.15106993]
[1752371337109,0.03685,117480.0,117470.0,0.15106993]
[1752371337309,0.27997425,117480.0,117470.0,0.15106993]
[1752371337702,0.00535,117480.0,117470.0,0.15106993]
[1752371337911,0.0304,117480.0,117470.0,0.15321993]
[1752371338117,0.03352,117480.0,117470.0,0.15321993]
[1752371339743,0.03618002,117480.0,117470.0,0.15106993]
[1752371339952,0.28226427,117480.0,117470.0,0.15106993]
[1752371340065,0.27960425,117480.0,117470.0,0.15106993]
[1752371342760,0.5227285,117480.0,117470.0,0.15102993]
[1752371343437,0.27960425,117480.0,117470.0,0.15102993]
[1752371344335,0.5227285,117480.0,117440.0,0.055]
[1752371344587,0.0314,117460.0,117450.0,0.10196]
[1752371344800,0.03649,117460.0,117450.0,0.16752]
[1752371345264,0.0314,117460.0,117450.0,0.10196]
[1752371345473,0.0314,117460.0,117450.0,0.25298993]
[1752371345474,0.03649,117460.0,117450.0,0.25298993]
[1752371345686,0.27961425,117460.0,117450.0,0.25298993]
[1752371346763,0.03356,117460.0,117450.0,0.25508993]
[1752371346974,0.27668425,117460.0,117450.0,0.25806993]
[1752371347615,0.27768425,117460.0,117450.0,0.25806993]
[1752371347824,0.27768425,117460.0,117450.0,0.25508993]
[1752371348451,0.28061425,117460.0,117450.0,0.25508993]
[1752371348663,0.001,117460.0,117450.0,0.25806993]
[1752371349709,0.24627425,117470.0,117450.0,0.25806993]
[1752371349710,0.27767425,117470.0,117450.0,0.25806993]
[1752371349914,0.27767425,117470.0,117460.0,0.08542993]
[1752371350126,0.27983425,117470.0,117460.0,0.08542993]
[1752371351182,0.27983425,117470.0,117460.0,0.15102993]
[1752371352673,0.28083425,117470.0,117460.0,0.15102993]
[1752371360028,0.03771,117470.0,117460.0,0.15102993]
[1752371360208,0.28083425,117470.0,117460.0,0.15102993]
[1752371363733,0.03771,117470.0,117460.0,0.15102993]
[1752371363949,0.2834945,117470.0,117460.0,0.15102993]
[1752371364186,0.28083425,117470.0,117460.0,0.15102993]
[1752371364617,0.03771,117470.0,117460.0,0.15102993]
[1752371364863,0.2834945,117470.0,117460.0,0.15102993]
[1752371365068,0.28083425,117470.0,117460.0,0.15102993]
[1752371365285,0.03771,117470.0,117460.0,0.15102993]
[1752371365502,0.2834945,117470.0,117460.0,0.15102993]
[1752371365707,0.28083425,117470.0,117460.0,0.15102993]
[1752371366654,0.03771,117470.0,117460.0,0.15102993]
[1752371366845,0.2834945,117470.0,117460.0,0.15102993]
[1752371367093,0.28083425,117470.0,117460.0,0.15102993]
[1752371369072,0.03771,117470.0,117460.0,0.15102993]
[1752371369249,0.2834945,117470.0,117460.0,0.15102993]
[1752371369510,0.28083425,117470.0,117460.0,0.15102993]
[1752371371376,0.28083425,117470.0,117460.0,0.25298993]
[1752371376270,0.03771,117470.0,117460.0,0.25298993]
[1752371376472,0.2834945,117470.0,117460.0,0.25298993]
[1752371376660,0.28083425,117470.0,117460.0,0.25298993]
[1752371377297,0.03771,117470.0,117460.0,0.25298993]
[1752371377629,0.2834945,117470.0,117460.0,0.25298993]
[1752371377833,0.28083425,117470.0,117460.0,0.25298993]
[1752371380081,0.03771,117470.0,117460.0,0.25298993]
[1752371380280,0.2834945,117470.0,117460.0,0.25298993]
[1752371380483,0.28083425,117470.0,117460.0,0.25298993]
[1752371381776,0.03771,117470.0,117460.0,0.25298993]
[1752371381944,0.2834945,117470.0,117460.0,0.25298993]
[1752371382149,0.28083425,117470.0,117460.0,0.25298993]
[1752371383883,0.03456,117470.0,117460.0,0.25498993]
[1752371384086,0.2803445,117470.0,117460.0,0.25498993]
[1752371384317,0.27768425,117470.0,117460.0,0.25498993]
[1752371385152,0.27552425,117470.0,117460.0,0.25498993]
[1752371385359,0.001,117470.0,117460.0,0.27435993]
[1752371385886,0.24412425,117470.0,117460.0,0.27435993]
[1752371386694,0.24412425,117470.0,117460.0,0.25805993]
[1752371396874,0.183346,117470.0,117460.0,0.25805993]
[1752371398028,0.183346,117470.0,117460.0,0.27385993]
[1752371398873,0.183346,117470.0,117460.0,0.25805993]
[1752371400016,0.214246,117470.0,117460.0,0.25805993]
[1752371400424,0.198346,117470.0,117460.0,0.25805993]
[1752371401584,0.200406,117470.0,117460.0,0.25805993]
[1752371401794,0.216306,117470.0,117460.0,0.25498993]
[1752371402133,0.216306,117470.0,117460.0,0.25805993]
[1752371402541,0.401812,117470.0,117460.0,0.25498993]
[1752371402718,0.401812,117470.0,117460.0,0.16712]
[1752371403107,0.427329,117470.0,117460.0,0.16712]
[1752371404855,0.3058565,117470.0,117460.0,0.16712]
[1752371415744,0.3058565,117470.0,117460.0,0.10196]
[1752371416037,0.3058565,117470.0,117460.0,0.16708]
[1752371416654,0.3048565,117470.0,117460.0,0.16708]
[1752371416797,0.3058565,117470.0,117460.0,0.16708]
[1752371417616,0.3078565,117470.0,117460.0,0.16708]
[1752371424825,0.42950692,117470.0,117460.0,0.16708]
[1752371427223,0.76950692,117470.0,117460.0,0.16708]
[1752371429074,0.404637,117470.0,117460.0,0.16708]
[1752371429303,0.76950692,117470.0,117460.0,0.16708]
[1752371429538,0.404637,117470.0,117460.0,0.16708]
[1752371429808,0.76950692,117470.0,117460.0,0.16708]
[1752371436861,0.404637,117470.0,117460.0,0.16708]
[1752371437095,0.76950692,117470.0,117460.0,0.16708]
[1752371439930,0.404637,117470.0,117460.0,0.16708]
[1752371440130,0.76950692,117470.0,117460.0,0.16708]
[1752371455360,0.404637,117470.0,117460.0,0.16708]
[1752371455554,0.76950692,117470.0,117460.0,0.16708]
[1752371462002,0.404637,117470.0,117460.0,0.16708]
[1752371462244,0.76950692,117470.0,117460.0,0.16708]
[1752371464239,0.58707196,117470.0,117460.0,0.16708]
[1752371464461,0.043517,117470.0,117460.0,0.16915]
[1752371464667,0.003,117470.0,117460.0,0.38601496]
[1752371464869,0.003,117470.0,117460.0,0.47144489]
[1752371465522,0.00566025,117470.0,117460.0,0.28900993]
[1752371465726,0.18809521,117470.0,117460.0,0.28900993]
[1752371465935,0.18543496,117470.0,117460.0,0.28900993]
[1752371469206,0.003,117470.0,117460.0,0.28900993]
[1752371469435,0.18809521,117470.0,117460.0,0.28900993]
[1752371469683,0.18543496,117470.0,117460.0,0.28900993]
[1752371474485,0.003,117470.0,117460.0,0.28900993]
[1752371474728,0.18809521,117470.0,117460.0,0.28900993]
[1752371474933,0.003,117470.0,117460.0,0.28900993]
[1752371475136,0.18809521,117470.0,117460.0,0.28900993]
[1752371475341,0.18543496,117470.0,117460.0,0.28900993]
[1752371475561,0.003,117470.0,117460.0,0.28900993]
[1752371475781,0.18809521,117470.0,117460.0,0.28900993]
[1752371475981,0.18543496,117470.0,117460.0,0.28900993]
[1752371476452,0.003,117470.0,117460.0,0.28900993]
[1752371476697,0.18809521,117470.0,117460.0,0.28900993]
[1752371476920,0.18543496,117470.0,117460.0,0.28900993]
[1752371477221,0.003,117470.0,117460.0,0.28900993]
[1752371477435,0.18809521,117470.0,117460.0,0.28900993]
[1752371477667,0.18543496,117470.0,117460.0,0.28900993]
[1752371478256,0.003,117470.0,117460.0,0.28900993]
[1752371478481,0.00566025,117470.0,117460.0,0.28900993]
[1752371478685,0.18809521,117470.0,117460.0,0.28900993]
[1752371478858,0.18543496,117470.0,117460.0,0.28900993]
[1752371480184,0.003,117470.0,117460.0,0.28900993]
[1752371480347,0.18809521,117470.0,117460.0,0.28900993]
[1752371480687,0.18543496,117470.0,117460.0,0.28900993]
[1752371481877,0.18543496,117470.0,117460.0,0.27390993]
[1752371482928,0.18543496,117470.0,117460.0,0.29010993]
[1752371484049,0.003,117470.0,117460.0,0.29010993]
[1752371484201,0.18809521,117470.0,117460.0,0.29010993]
[1752371484413,0.18543496,117470.0,117460.0,0.29010993]
[1752371486335,0.18543496,117470.0,117460.0,0.27390993]
[1752371486661,0.003,117470.0,117460.0,0.27390993]
[1752371486869,0.00566025,117470.0,117460.0,0.29010993]
[1752371487980,0.18343496,117470.0,117460.0,0.29010993]
[1752371488203,0.18243496,117470.0,117460.0,0.29002993]
[1752371488429,0.18243496,117470.0,117460.0,0.25972993]
[1752371488641,0.18243496,117470.0,117460.0,0.26072993]
[1752371489264,0.18243496,117470.0,117460.0,0.27652993]
[1752371489468,0.058215,117490.0,117460.0,0.29272993]
[1752371489672,0.18509498,117480.0,117470.0,0.10122993]
[1752371489790,0.18243496,117480.0,117470.0,0.17135993]
[1752371490202,0.0327,117490.0,117470.0,0.17135993]
[1752371490407,0.18509498,117480.0,117470.0,0.17135993]
[1752371490675,0.18243496,117480.0,117470.0,0.17135993]
[1752371490909,0.18243496,117480.0,117470.0,0.17235993]
[1752371492787,0.18243496,117480.0,117470.0,0.15655993]
[1752371493416,0.0327,117490.0,117470.0,0.15655993]
[1752371493631,0.18509498,117480.0,117470.0,0.15655993]
[1752371493920,0.18243496,117480.0,117470.0,0.15655993]
[1752371495390,0.36486992,117480.0,117470.0,0.15655993]
[1752371496930,0.0022,117490.0,117470.0,0.37099489]
[1752371497150,0.18463496,117490.0,117480.0,0.00293]
[1752371497360,0.18463496,117490.0,117480.0,0.09031993]
[1752371499123,0.18563496,117490.0,117480.0,0.09031993]
[1752371501545,0.0032,117490.0,117480.0,0.09031993]
[1752371501748,0.18829476,117490.0,117480.0,0.09031993]
[1752371501950,0.18563496,117490.0,117480.0,0.09031993]
[1752371503904,0.18563496,117490.0,117480.0,0.19227993]
[1752371505537,0.0032,117490.0,117480.0,0.19227993]
[1752371505711,0.18829476,117490.0,117480.0,0.19227993]
[1752371505915,0.18663496,117490.0,117480.0,0.19227993]
[1752371509571,0.0042,117490.0,117480.0,0.19227993]
[1752371509774,0.18929476,117490.0,117480.0,0.19227993]
[1752371509946,0.18663496,117490.0,117480.0,0.19227993]
[1752371513118,0.47328054,117490.0,117480.0,0.1668]
[1752371513774,0.49879454,117490.0,117480.0,0.1668]
[1752371514280,0.43072392,117490.0,117480.0,0.1668]
[1752371514845,0.43072392,117490.0,117480.0,0.10196]
[1752371515037,0.43072392,117490.0,117480.0,0.1668]
[1752371518068,0.24314896,117490.0,117480.0,0.1668]
[1752371518279,0.24531896,117490.0,117480.0,0.1668]
[1752371518481,0.42775392,117490.0,117480.0,0.1668]
[1752371518681,0.43072392,117490.0,117480.0,0.1668]
[1752371522994,0.044714,117490.0,117480.0,0.17169]
[1752371523217,0.22931896,117490.0,117480.0,0.17169]
[1752371523468,0.22931896,117490.0,117480.0,0.16876]
[1752371524090,0.24471896,117490.0,117480.0,0.16876]
[1752371526797,0.062284,117490.0,117480.0,0.16876]
[1752371527031,0.24737876,117490.0,117480.0,0.16876]
[1752371527287,0.21920496,117490.0,117480.0,0.16876]
[1752371530890,0.40163992,117490.0,117480.0,0.16876]
[1752371531215,0.40462992,117490.0,117480.0,0.16876]
[1752371531430,0.40462992,117490.0,117480.0,0.1668]
[1752371542106,0.03677,117490.0,117480.0,0.16893]
[1752371542330,0.20646476,117490.0,117480.0,0.17186]
[1752371542533,0.20380496,117490.0,117480.0,0.17186]
[1752371543383,0.02137,117490.0,117480.0,0.17186]
[1752371543585,0.20646476,117490.0,117480.0,0.16893]
[1752371543797,0.40173992,117490.0,117480.0,0.16893]
[1752371545051,0.21930496,117490.0,117480.0,0.16893]
[1752371546181,0.18880496,117490.0,117480.0,0.17186]
[1752371546618,0.00637,117490.0,117480.0,0.17186]
[1752371546825,0.18929476,117490.0,117480.0,0.17186]
[1752371547028,0.18663496,117490.0,117480.0,0.17186]
[1752371547332,0.0042,117490.0,117480.0,0.17186]
[1752371547560,0.20775476,117490.0,117480.0,0.17186]
[1752371547764,0.20509496,117490.0,117480.0,0.17186]
[1752371548531,0.18663496,117490.0,117480.0,0.25728993]
[1752371548756,0.18663496,117490.0,117480.0,0.28848993]
[1752371553672,0.0042,117490.0,117480.0,0.28848993]
[1752371553899,0.18663496,117490.0,117480.0,0.28848993]
[1752371554321,0.0042,117490.0,117480.0,0.28848993]
[1752371554533,0.18663496,117490.0,117480.0,0.27288993]
[1752371557101,0.0042,117490.0,117480.0,0.27288993]
[1752371557301,0.18663496,117490.0,117480.0,0.28878993]
[1752371557927,0.18663496,117490.0,117480.0,0.27288993]
[1752371559746,0.0042,117490.0,117480.0,0.27288993]
[1752371559958,0.18663496,117490.0,117480.0,0.27288993]
[1752371560788,0.0042,117490.0,117480.0,0.47192489]
[1752371561360,0.0042,117490.0,117480.0,0.28948993]
[1752371567225,0.18663496,117490.0,117480.0,0.27288993]
[1752371567680,0.21713496,117490.0,117480.0,0.32204993]
[1752371567895,0.22238496,117490.0,117480.0,0.31911993]
[1752371569072,0.40481992,117490.0,117480.0,0.18738993]
[1752371569074,0.40481992,117490.0,117480.0,0.10196]
[1752371569284,0.40481992,117490.0,117480.0,0.16676]
[1752371570871,0.28307536,117490.0,117480.0,0.16676]
[1752371575969,0.24732536,117490.0,117480.0,0.16878]
[1752371576192,0.24732536,117490.0,117480.0,0.18768]
[1752371576615,0.24732536,117490.0,117480.0,0.17198]
[1752371576836,0.0042,117490.0,117480.0,0.25740993]
[1752371577459,0.24998516,117490.0,117480.0,0.25740993]
[1752371577710,0.24732536,117490.0,117480.0,0.25740993]
[1752371578880,0.05472,117500.0,117480.0,0.25740993]
[1752371579047,0.24578516,117490.0,117480.0,0.25740993]
[1752371579287,0.24312536,117490.0,117480.0,0.25740993]
[1752371580478,0.25832536,117490.0,117480.0,0.25740993]
[1752371580699,0.0152,117490.0,117480.0,0.25740993]
[1752371580898,0.26098516,117490.0,117480.0,0.25740993]
[1752371581016,0.25832536,117490.0,117480.0,0.25740993]
[1752371581442,0.02,117500.0,117480.0,0.25740993]
[1752371581656,0.02,117500.0,117490.0,0.10382993]
[1752371581895,0.26578493,117500.0,117490.0,0.10584993]
[1752371582095,0.26312536,117500.0,117490.0,0.10584993]
[1752371582511,0.26312536,117500.0,117490.0,0.09064993]
[1752371584673,0.02,117500.0,117490.0,0.09064993]
[1752371584866,0.26312536,117500.0,117490.0,0.09064993]
[1752371585256,0.02,117500.0,117490.0,0.09064993]
[1752371585407,0.26578493,117500.0,117490.0,0.09064993]
[1752371585615,0.26312536,117500.0,117490.0,0.09064993]
[1752371585825,0.29697536,117500.0,117490.0,0.09039993]
[1752371586028,0.29697536,117500.0,117490.0,0.08744993]
[1752371588133,0.02,117500.0,117490.0,0.10649993]
[1752371589024,0.26312536,117500.0,117490.0,0.10649993]
[1752371591277,0.26312536,117500.0,117490.0,0.09039993]
[1752371591480,0.02,117500.0,117490.0,0.09039993]
[1752371591686,0.26312536,117500.0,117490.0,0.09039993]
[1752371595060,0.27892536,117500.0,117490.0,0.09039993]
[1752371595274,0.28087536,117500.0,117490.0,0.09039993]
[1752371595474,0.29597536,117500.0,117490.0,0.08744993]
[1752371595691,0.28087536,117500.0,117490.0,0.09039993]
[1752371596695,0.29597536,117500.0,117490.0,0.08744993]
[1752371596943,0.28087536,117500.0,117490.0,0.08744993]
[1752371597176,0.28087536,117500.0,117490.0,0.09039993]
[1752371597697,0.03775,117500.0,117490.0,0.09039993]
[1752371597903,0.28087536,117500.0,117490.0,0.09039993]
[1752371602247,0.28087536,117500.0,117490.0,0.08744993]
[1752371602500,0.29677536,117500.0,117490.0,0.08744993]
[1752371604599,0.28087536,117500.0,117490.0,0.08744993]
[1752371605170,0.29717536,117500.0,117490.0,0.08542993]
[1752371605424,0.30036536,117500.0,117490.0,0.08542993]
[1752371605677,0.30036536,117500.0,117490.0,0.15022993]
[1752371609800,0.05724,117500.0,117490.0,0.15022993]
[1752371610046,0.30036536,117500.0,117490.0,0.15022993]
[1752371610952,0.42184062,117500.0,117490.0,0.15022993]
[1752371611217,0.42184062,117500.0,117490.0,0.0648]
[1752371613029,0.0329,117490.0,117480.0,0.10196]
[1752371613250,0.28378813,117490.0,117480.0,0.16676]
[1752371613469,0.28112833,117490.0,117480.0,0.16676]
[1752371614152,0.28112833,117490.0,117480.0,0.16776]
[1752371615417,0.28112833,117490.0,117480.0,0.16876]
[1752371621746,0.03804,117490.0,117480.0,0.16876]
[1752371621961,0.28112833,117490.0,117480.0,0.16876]
[1752371624515,0.27793833,117490.0,117480.0,0.17084]
[1752371624736,0.29368833,117500.0,117480.0,0.27515993]
[1752371624940,0.24308833,117490.0,117480.0,0.27515993]
[1752371625382,0.24308833,117490.0,117480.0,0.25945993]
[1752371625588,0.26308833,117500.0,117480.0,0.29065993]
[1752371625815,0.26308833,117500.0,117490.0,0.08542993]
[1752371626039,0.26308833,117500.0,117490.0,0.09069993]
[1752371627762,0.02,117500.0,117490.0,0.09069993]
[1752371628099,0.2678979,117500.0,117490.0,0.09069993]
[1752371628307,0.28083833,117500.0,117490.0,0.09069993]
[1752371628839,0.03775,117500.0,117490.0,0.09069993]
[1752371629039,0.2834979,117500.0,117490.0,0.09069993]
[1752371629242,0.28083833,117500.0,117490.0,0.09069993]
[1752371634089,0.28083833,117500.0,117490.0,0.08750993]
[1752371636429,0.28083833,117500.0,117490.0,0.18946993]
[1752371637463,0.03775,117500.0,117490.0,0.18946993]
[1752371637691,0.2834979,117500.0,117490.0,0.18946993]
[1752371637865,0.28083833,117500.0,117490.0,0.18946993]
[1752371638910,0.40231742,117500.0,117490.0,0.18946993]
[1752371643214,0.42045742,117500.0,117490.0,0.18946993]
[1752371643797,0.42045742,117500.0,117490.0,0.18738993]
[1752371644417,0.42045742,117500.0,117490.0,0.18783493]
[1752371647699,0.05589,117500.0,117490.0,0.18783493]
[1752371647894,0.42311699,117500.0,117490.0,0.18783493]
[1752371648098,0.42045742,117500.0,117490.0,0.18783493]
[1752371651743,0.05589,117500.0,117490.0,0.18783493]
[1752371652001,0.42311699,117500.0,117490.0,0.25259493]
[1752371652294,0.42045742,117500.0,117490.0,0.25259493]
[1752371652725,0.23817371,117500.0,117490.0,0.25259493]
[1752371652838,0.42045742,117500.0,117490.0,0.25259493]
[1752371672121,0.42045742,117500.0,117490.0,0.167165]
[1752371674603,0.05589,117500.0,117490.0,0.167165]
[1752371674801,0.23779328,117500.0,117490.0,0.169275]
[1752371675012,0.41741742,117500.0,117490.0,0.169275]
[1752371675604,0.05285,117500.0,117490.0,0.169275]
[1752371675835,0.42007699,117500.0,117490.0,0.169275]
[1752371676047,0.41741742,117500.0,117490.0,0.169275]
[1752371677881,0.05285,117500.0,117490.0,0.169275]
[1752371678064,0.42007699,117500.0,117490.0,0.169275]
[1752371678264,0.41741742,117500.0,117490.0,0.169275]
[1752371679089,0.42040742,117500.0,117490.0,0.169275]
[1752371681912,0.05584,117500.0,117490.0,0.169275]
[1752371682087,0.42306699,117500.0,117490.0,0.169275]
[1752371682249,0.42040742,117500.0,117490.0,0.169275]
[1752371685757,0.05584,117500.0,117490.0,0.169275]
[1752371686087,0.42306699,117500.0,117490.0,0.169275]
[1752371686288,0.42040742,117500.0,117490.0,0.169275]
[1752371699575,0.05584,117500.0,117490.0,0.169275]
[1752371699775,0.42306699,117500.0,117490.0,0.169275]
[1752371700054,0.42040742,117500.0,117490.0,0.169275]
[1752371710373,0.50168571,117500.0,117490.0,0.102405]
[1752371710600,1.01076175,117500.0,117490.0,0.102405]
[1752371710798,1.01076175,117500.0,117490.0,0.167125]
[1752371710959,1.03627675,117500.0,117490.0,0.167125]
[1752371711155,1.03627675,117500.0,117490.0,0.102405]
[1752371711360,1.03627675,117500.0,117490.0,0.167125]
[1752371711580,1.11446855,117500.0,117490.0,0.167125]
[1752371711805,1.19989848,117500.0,117490.0,0.167125]
[1752371713001,1.20189848,117500.0,117490.0,0.167125]
[1752371713500,1.74874961,117500.0,117490.0,0.16668]
[1752371713756,0.0308,117490.0,117480.0,0.10196]
[1752371714002,0.48853715,117490.0,117480.0,0.10196]
[1752371714244,0.48587735,117490.0,117480.0,0.10196]
[1752371714448,0.66816106,117490.0,117480.0,0.10196]
[1752371714735,0.48587735,117490.0,117480.0,0.10196]
[1752371715026,0.48687735,117490.0,117480.0,0.16668]
[1752371715816,0.48587735,117490.0,117480.0,0.16668]
[1752371716044,0.48787735,117490.0,117480.0,0.16668]
[1752371716256,0.49087735,117490.0,117480.0,0.16668]
[1752371716498,0.57630728,117490.0,117480.0,0.16668]
[1752371717351,0.60182428,117490.0,117480.0,0.16668]
[1752371718960,0.51639435,117490.0,117480.0,0.16668]
[1752371719409,0.15182693,117490.0,117480.0,0.16668]
[1752371719654,0.51905415,117490.0,117480.0,0.16668]
[1752371719888,0.51639435,117490.0,117480.0,0.16668]
[1752371742672,0.0323,117480.0,117460.0,0.00214904]
[1752371742870,1.98670391,117470.0,117460.0,0.00214904]
[1752371743075,0.34,117440.0,117430.0,0.00318]
[1752371743285,0.91915113,117440.0,117430.0,0.0679]
[1752371743467,0.72056742,117440.0,117430.0,0.00527]
[1752371743674,0.72056742,117440.0,117430.0,0.06999]
[1752371743862,0.74609442,117440.0,117430.0,0.06999]
[1752371744074,0.74808442,117440.0,117430.0,0.06999]
[1752371744463,0.75008442,117440.0,117430.0,0.06999]
[1752371744972,0.95767101,117440.0,117430.0,0.06999]
[1752371745129,0.87224108,117440.0,117430.0,0.06999]